[Event "Late-Titled-Tuesday-Blitz-September-05-2023"]
[Site "Chess.com"]
[Date "2023.09.05"]
[Round "3"]
[White "The_Princess_Moon"]
[Black "2346PL"]
[Result "0-1"]
[WhiteElo "2282"]
[BlackElo "2484"]
[TimeControl "180+1"]
[EndTime "14:29:20 PDT"]
[Termination "2346PL won by checkmate"]

1. e4 {[%clk 0:03:00.9]} 1... d6 {[%clk 0:02:58.2]} 2. Nf3 {[%clk 0:03:01.2]}
2... Nf6 {[%clk 0:02:57.9]} 3. Nc3 {[%clk 0:03:02.1]} 3... e5 {[%clk 0:02:58.1]}
4. d4 {[%clk 0:03:03]} 4... Nbd7 {[%clk 0:02:57.3]} 5. Bc4 {[%clk 0:03:02.5]}
5... Be7 {[%clk 0:02:57.4]} 6. a4 {[%clk 0:03:02.5]} 6... O-O {[%clk 0:02:57.1]}
7. O-O {[%clk 0:03:02.9]} 7... c6 {[%clk 0:02:57.1]} 8. h3 {[%clk 0:03:02.1]}
8... b6 {[%clk 0:02:56.7]} 9. dxe5 {[%clk 0:02:57.9]} 9... dxe5 {[%clk
0:02:56.2]} 10. Bg5 {[%clk 0:02:57.2]} 10... h6 {[%clk 0:02:48.1]} 11. Be3
{[%clk 0:02:54.9]} 11... a6 {[%clk 0:02:41.6]} 12. Qe2 {[%clk 0:02:53.8]} 12...
Bb7 {[%clk 0:02:39.5]} 13. Bb3 {[%clk 0:02:52.5]} 13... b5 {[%clk 0:02:36.3]}
14. axb5 {[%clk 0:02:48.9]} 14... axb5 {[%clk 0:02:36.6]} 15. Rxa8 {[%clk
0:02:48.6]} 15... Qxa8 {[%clk 0:02:37]} 16. Rd1 {[%clk 0:02:47.1]} 16... Qb8
{[%clk 0:02:27.1]} 17. Nh4 {[%clk 0:02:42.2]} 17... Nc5 {[%clk 0:02:22.8]} 18.
Ng6 {[%clk 0:02:34.4]} 18... Qc7 {[%clk 0:02:15.5]} 19. Nxf8 {[%clk 0:02:29.9]}
19... Bxf8 {[%clk 0:02:15.4]} 20. f3 {[%clk 0:02:26.7]} 20... Nh5 {[%clk
0:01:53.6]} 21. Qd2 {[%clk 0:02:23.6]} 21... Be7 {[%clk 0:01:43.5]} 22. Kh2
{[%clk 0:02:20]} 22... Nxb3 {[%clk 0:01:35.4]} 23. cxb3 {[%clk 0:02:18.7]} 23...
Bc8 {[%clk 0:01:36.3]} 24. Qf2 {[%clk 0:02:10.2]} 24... Kh7 {[%clk 0:01:21.1]}
25. Bc5 {[%clk 0:01:55.3]} 25... Bg5 {[%clk 0:01:20.2]} 26. b4 {[%clk
0:01:52.3]} 26... Bf4+ {[%clk 0:01:19.6]} 27. Kh1 {[%clk 0:01:49.5]} 27... Be6
{[%clk 0:01:15.7]} 28. Ne2 {[%clk 0:01:48.4]} 28... Qc8 {[%clk 0:01:08.8]} 29.
Qh4 {[%clk 0:01:40]} 29... g6 {[%clk 0:00:56.5]} 30. g4 {[%clk 0:01:32.5]} 30...
Ng3+ {[%clk 0:00:53]} 31. Nxg3 {[%clk 0:01:28.4]} 31... Bg5 {[%clk 0:00:53.6]}
32. Qxg5 {[%clk 0:01:10.7]} 32... hxg5 {[%clk 0:00:53.7]} 33. Nf1 {[%clk
0:00:57.7]} 33... Kg7 {[%clk 0:00:51.6]} 34. Kg2 {[%clk 0:00:55.2]} 34... Qa6
{[%clk 0:00:50.5]} 35. Ne3 {[%clk 0:00:53]} 35... Qa2 {[%clk 0:00:49.9]} 36. Rd2
{[%clk 0:00:52.5]} 36... Qb3 {[%clk 0:00:47.6]} 37. Kf2 {[%clk 0:00:50.7]} 37...
Qa2 {[%clk 0:00:44.9]} 38. Bd6 {[%clk 0:00:50]} 38... f6 {[%clk 0:00:44.3]} 39.
Bc5 {[%clk 0:00:49]} 39... Qb1 {[%clk 0:00:43.2]} 40. Nd1 {[%clk 0:00:45.8]}
40... Bb3 {[%clk 0:00:37.2]} 41. Rd7+ {[%clk 0:00:22]} 41... Kg8 {[%clk
0:00:36.7]} 42. Ne3 {[%clk 0:00:19.1]} 42... Qxb2+ {[%clk 0:00:35]} 43. Kg3
{[%clk 0:00:19]} 43... Qc1 {[%clk 0:00:30.6]} 44. Kf2 {[%clk 0:00:17.1]} 44...
Qh1 {[%clk 0:00:25.7]} 45. Rd8+ {[%clk 0:00:17]} 45... Kf7 {[%clk 0:00:25.4]}
46. Rd7+ {[%clk 0:00:17.1]} 46... Ke8 {[%clk 0:00:25.6]} 47. Re7+ {[%clk
0:00:17.2]} 47... Kd8 {[%clk 0:00:25.9]} 48. Rh7 {[%clk 0:00:15.5]} 48... Bc4
{[%clk 0:00:22.5]} 49. Be7+ {[%clk 0:00:12.3]} 49... Kc8 {[%clk 0:00:22.8]} 50.
Bxf6 {[%clk 0:00:12.6]} 50... Qh2+ {[%clk 0:00:23.3]} 51. Ng2 {[%clk 0:00:09.8]}
51... Qh1 {[%clk 0:00:21]} 52. Ne3 {[%clk 0:00:09.3]} 52... Qc1 {[%clk
0:00:19.4]} 53. Bxe5 {[%clk 0:00:09.2]} 53... Qd2+ {[%clk 0:00:19.7]} 54. Kg3
{[%clk 0:00:09.2]} 54... Qxe3 {[%clk 0:00:19.7]} 55. Rc7+ {[%clk 0:00:10.1]}
55... Kd8 {[%clk 0:00:19.6]} 56. Rxc6 {[%clk 0:00:10.3]} 56... Qg1# {[%clk
0:00:18.7]} 0-1

[Event "Late-Titled-Tuesday-Blitz-September-05-2023"]
[Site "Chess.com"]
[Date "2023.09.05"]
[Round "3"]
[White "Cmorales2001"]
[Black "Bobbybunny"]
[Result "1-0"]
[WhiteElo "2425"]
[BlackElo "2197"]
[TimeControl "180+1"]
[EndTime "14:29:21 PDT"]
[Termination "Cmorales2001 won on time"]

1. e4 {[%clk 0:02:57.3]} 1... c5 {[%clk 0:02:56]} 2. Nf3 {[%clk 0:02:53.7]} 2...
g6 {[%clk 0:02:54.9]} 3. d4 {[%clk 0:02:53.1]} 3... cxd4 {[%clk 0:02:54.9]} 4.
Nxd4 {[%clk 0:02:54]} 4... Nf6 {[%clk 0:02:54.5]} 5. Nc3 {[%clk 0:02:53.2]} 5...
d6 {[%clk 0:02:54.9]} 6. Be3 {[%clk 0:02:51.7]} 6... Bg7 {[%clk 0:02:55.3]} 7.
f3 {[%clk 0:02:51.7]} 7... a6 {[%clk 0:02:53.7]} 8. Qd2 {[%clk 0:02:49.7]} 8...
h5 {[%clk 0:02:53.3]} 9. O-O-O {[%clk 0:02:43.8]} 9... b5 {[%clk 0:02:52]} 10.
Kb1 {[%clk 0:02:42.5]} 10... Bb7 {[%clk 0:02:48.7]} 11. Nde2 {[%clk 0:02:41.8]}
11... Nbd7 {[%clk 0:02:45.2]} 12. h4 {[%clk 0:02:37]} 12... Rc8 {[%clk
0:02:32.6]} 13. Nf4 {[%clk 0:02:35.6]} 13... Ne5 {[%clk 0:02:24.3]} 14. Ncd5
{[%clk 0:02:33.6]} 14... Nxd5 {[%clk 0:02:20.3]} 15. Nxd5 {[%clk 0:02:31.3]}
15... Bxd5 {[%clk 0:02:06.2]} 16. exd5 {[%clk 0:02:30]} 16... Qc7 {[%clk
0:02:01.9]} 17. Bg5 {[%clk 0:02:28.2]} 17... O-O {[%clk 0:01:55.3]} 18. Be2
{[%clk 0:02:23.6]} 18... Nc4 {[%clk 0:01:54.3]} 19. Bxc4 {[%clk 0:02:22.5]}
19... bxc4 {[%clk 0:01:54.4]} 20. c3 {[%clk 0:02:22.3]} 20... Rb8 {[%clk
0:01:46.4]} 21. Rhe1 {[%clk 0:02:19.1]} 21... Rfe8 {[%clk 0:01:34.7]} 22. Re4
{[%clk 0:02:18]} 22... Rb5 {[%clk 0:01:27.5]} 23. Rde1 {[%clk 0:02:15.2]} 23...
Reb8 {[%clk 0:01:10.6]} 24. R1e2 {[%clk 0:01:15.6]} 24... Qa5 {[%clk 0:01:02.8]}
25. Rxc4 {[%clk 0:01:10.5]} 25... Rxb2+ {[%clk 0:00:55.4]} 26. Qxb2 {[%clk
0:01:10]} 26... Rxb2+ {[%clk 0:00:54.1]} 27. Rxb2 {[%clk 0:01:10.7]} 27... Qxd5
{[%clk 0:00:53.2]} 28. Rc8+ {[%clk 0:01:03.3]} 28... Kh7 {[%clk 0:00:53]} 29.
Rd2 {[%clk 0:01:03.7]} 29... Qb5+ {[%clk 0:00:50.8]} 30. Kc1 {[%clk 0:01:03.4]}
30... Qf1+ {[%clk 0:00:49]} 31. Rd1 {[%clk 0:01:02.7]} 31... Qxg2 {[%clk
0:00:47.6]} 32. Rc7 {[%clk 0:01:01.1]} 32... Qxa2 {[%clk 0:00:39.9]} 33. Re1
{[%clk 0:00:57.9]} 33... Qa1+ {[%clk 0:00:35.8]} 34. Kc2 {[%clk 0:00:57.1]}
34... Qa2+ {[%clk 0:00:35.5]} 35. Kd3 {[%clk 0:00:56.8]} 35... Qd5+ {[%clk
0:00:35]} 36. Kc2 {[%clk 0:00:57]} 36... e5 {[%clk 0:00:27.1]} 37. Rb1 {[%clk
0:00:52.4]} 37... Qxf3 {[%clk 0:00:22.7]} 38. Rbb7 {[%clk 0:00:51]} 38... e4
{[%clk 0:00:16.3]} 39. Rxf7 {[%clk 0:00:50.2]} 39... Qxc3+ {[%clk 0:00:16.1]}
40. Kd1 {[%clk 0:00:50.3]} 40... Qd3+ {[%clk 0:00:15.7]} 41. Ke1 {[%clk
0:00:49.5]} 41... Qg3+ {[%clk 0:00:14]} 42. Kf1 {[%clk 0:00:48.4]} 42... Qd3+
{[%clk 0:00:12.3]} 43. Kg2 {[%clk 0:00:48.4]} 43... Qe2+ {[%clk 0:00:12.2]} 44.
Kg3 {[%clk 0:00:48.3]} 44... Qg4+ {[%clk 0:00:11.5]} 45. Kf2 {[%clk 0:00:48.5]}
45... e3+ {[%clk 0:00:03.4]} 46. Kxe3 {[%clk 0:00:40.5]} 46... Qg3+ {[%clk
0:00:03.5]} 47. Ke2 {[%clk 0:00:38.3]} 47... Qg2+ {[%clk 0:00:03.2]} 48. Ke1
{[%clk 0:00:37.5]} 48... Qg1+ {[%clk 0:00:02.9]} 49. Kd2 {[%clk 0:00:38]} 49...
Qg2+ {[%clk 0:00:02.1]} 50. Ke3 {[%clk 0:00:37.9]} 50... Qg3+ {[%clk 0:00:02.1]}
51. Kd2 {[%clk 0:00:38.5]} 51... Qg2+ {[%clk 0:00:01.8]} 52. Kd3 {[%clk
0:00:39.2]} 52... Qg3+ {[%clk 0:00:01.4]} 53. Kc4 {[%clk 0:00:38.4]} 53... Qg4+
{[%clk 0:00:01.3]} 54. Kd5 {[%clk 0:00:37.5]} 1-0

[Event "Late-Titled-Tuesday-Blitz-September-05-2023"]
[Site "Chess.com"]
[Date "2023.09.05"]
[Round "3"]
[White "tteshan"]
[Black "EsmeraldasAnderson03"]
[Result "1/2-1/2"]
[WhiteElo "2567"]
[BlackElo "2409"]
[TimeControl "180+1"]
[EndTime "14:29:27 PDT"]
[Termination "Game drawn by repetition"]

1. d4 {[%clk 0:03:00.9]} 1... d5 {[%clk 0:02:45.6]} 2. c4 {[%clk 0:03:01.2]}
2... dxc4 {[%clk 0:02:41.7]} 3. e3 {[%clk 0:03:01.1]} 3... a6 {[%clk 0:02:41.9]}
4. Bxc4 {[%clk 0:03:01.1]} 4... Nf6 {[%clk 0:02:42.4]} 5. Nf3 {[%clk 0:03:00.5]}
5... e6 {[%clk 0:02:43]} 6. O-O {[%clk 0:03:00.2]} 6... c5 {[%clk 0:02:43.4]} 7.
dxc5 {[%clk 0:03:00.6]} 7... Qxd1 {[%clk 0:02:43.1]} 8. Rxd1 {[%clk 0:03:01.5]}
8... Bxc5 {[%clk 0:02:43.5]} 9. Be2 {[%clk 0:03:01.6]} 9... b5 {[%clk
0:02:35.6]} 10. a4 {[%clk 0:03:00.2]} 10... b4 {[%clk 0:02:36.2]} 11. Nbd2
{[%clk 0:03:00.1]} 11... Bb7 {[%clk 0:02:36.7]} 12. Nc4 {[%clk 0:02:59.6]} 12...
Ke7 {[%clk 0:02:35.8]} 13. b3 {[%clk 0:02:53.1]} 13... a5 {[%clk 0:02:33.8]} 14.
Bb2 {[%clk 0:02:52.6]} 14... Nbd7 {[%clk 0:02:29.2]} 15. Rac1 {[%clk 0:02:49.9]}
15... Rhc8 {[%clk 0:02:21.3]} 16. Kf1 {[%clk 0:02:46.3]} 16... Nb6 {[%clk
0:02:17.2]} 17. Nce5 {[%clk 0:02:31.7]} 17... Bd5 {[%clk 0:02:03.6]} 18. Nd2
{[%clk 0:02:09.1]} 18... Ne4 {[%clk 0:01:06.9]} 19. Nxe4 {[%clk 0:02:06]} 19...
Bxe4 {[%clk 0:01:05.7]} 20. Nd3 {[%clk 0:02:06.7]} 20... Bd6 {[%clk 0:01:02.2]}
21. Bd4 {[%clk 0:01:24.5]} 21... Nd5 {[%clk 0:00:45.4]} 22. f3 {[%clk
0:01:23.7]} 22... Bxd3 {[%clk 0:00:41.1]} 23. Bxd3 {[%clk 0:01:20.7]} 23... Nc3
{[%clk 0:00:39.1]} 24. Rd2 {[%clk 0:01:13.5]} 24... e5 {[%clk 0:00:33.8]} 25.
Bxc3 {[%clk 0:00:58.3]} 25... bxc3 {[%clk 0:00:34.4]} 26. Rdc2 {[%clk
0:00:58.5]} 26... Ba3 {[%clk 0:00:32.6]} 27. Rd1 {[%clk 0:00:52.6]} 27... Bb2
{[%clk 0:00:22.1]} 28. Bb5 {[%clk 0:00:52.5]} 28... Rd8 {[%clk 0:00:21.5]} 29.
Ke2 {[%clk 0:00:46]} 29... Rxd1 {[%clk 0:00:21.1]} 30. Kxd1 {[%clk 0:00:46.9]}
30... Rd8+ {[%clk 0:00:21.3]} 31. Ke2 {[%clk 0:00:47.4]} 31... Kd6 {[%clk
0:00:21.7]} 32. Bc4 {[%clk 0:00:39.9]} 32... f6 {[%clk 0:00:19.4]} 33. Ke1
{[%clk 0:00:31.7]} 33... Kc5 {[%clk 0:00:19.7]} 34. Ke2 {[%clk 0:00:30.7]} 34...
Kb4 {[%clk 0:00:20.5]} 35. g4 {[%clk 0:00:28.7]} 35... g6 {[%clk 0:00:19.6]} 36.
h4 {[%clk 0:00:28.5]} 36... f5 {[%clk 0:00:19.7]} 37. gxf5 {[%clk 0:00:24.5]}
37... gxf5 {[%clk 0:00:20.6]} 38. Bd3 {[%clk 0:00:25.2]} 38... f4 {[%clk
0:00:16.1]} 39. exf4 {[%clk 0:00:22.7]} 39... exf4 {[%clk 0:00:17]} 40. Bxh7
{[%clk 0:00:23.1]} 40... Rh8 {[%clk 0:00:16.9]} 41. Bd3 {[%clk 0:00:21.1]} 41...
Rxh4 {[%clk 0:00:17.5]} 42. Bc4 {[%clk 0:00:20.7]} 42... Rh3 {[%clk 0:00:17.4]}
43. Bd5 {[%clk 0:00:19.5]} 43... Rh2+ {[%clk 0:00:15.9]} 44. Kd3 {[%clk
0:00:19.6]} 44... Rxc2 {[%clk 0:00:05.1]} 45. Kxc2 {[%clk 0:00:20.5]} 45... Kc5
{[%clk 0:00:05.8]} 46. Bc4 {[%clk 0:00:20.6]} 46... Kd4 {[%clk 0:00:06]} 47. Be6
{[%clk 0:00:19.8]} 47... Ba3 {[%clk 0:00:05.7]} 48. Bc4 {[%clk 0:00:19.7]} 48...
Be7 {[%clk 0:00:06.1]} 49. Be6 {[%clk 0:00:19.2]} 49... Bf6 {[%clk 0:00:06.8]}
50. Bf5 {[%clk 0:00:17.4]} 50... Ke3 {[%clk 0:00:07]} 51. Be4 {[%clk 0:00:17.8]}
51... Bd4 {[%clk 0:00:07.1]} 52. Bc6 {[%clk 0:00:17.3]} 52... Be5 {[%clk
0:00:07.5]} 53. Be4 {[%clk 0:00:17.2]} 53... Kd4 {[%clk 0:00:08.1]} 54. Bc6
{[%clk 0:00:16.9]} 54... Bd6 {[%clk 0:00:08.4]} 55. Be4 {[%clk 0:00:16.7]} 55...
Bb4 {[%clk 0:00:09.3]} 56. Bc6 {[%clk 0:00:16.4]} 56... Ba3 {[%clk 0:00:09.8]}
57. Be4 {[%clk 0:00:16.6]} 57... Bb4 {[%clk 0:00:10.7]} 58. Bb7 {[%clk
0:00:16.6]} 58... Bd6 {[%clk 0:00:11.6]} 59. Ba8 {[%clk 0:00:16.4]} 59... Bb4
{[%clk 0:00:12.5]} 60. Bb7 {[%clk 0:00:16.7]} 60... Bf8 {[%clk 0:00:13.4]} 61.
Ba8 {[%clk 0:00:17.2]} 61... Bb4 {[%clk 0:00:14.3]} 62. Bb7 {[%clk 0:00:17.6]}
1/2-1/2

[Event "Late-Titled-Tuesday-Blitz-September-05-2023"]
[Site "Chess.com"]
[Date "2023.09.05"]
[Round "3"]
[White "DTChess"]
[Black "Bauman_Guy"]
[Result "0-1"]
[WhiteElo "2453"]
[BlackElo "2877"]
[TimeControl "180+1"]
[EndTime "14:29:31 PDT"]
[Termination "Bauman_Guy won by resignation"]

1. e4 {[%clk 0:03:00.9]} 1... c5 {[%clk 0:03:00]} 2. Nf3 {[%clk 0:03:01]} 2...
d6 {[%clk 0:03:00.6]} 3. Nc3 {[%clk 0:03:00.6]} 3... Nf6 {[%clk 0:03:01.1]} 4.
d4 {[%clk 0:03:00.6]} 4... cxd4 {[%clk 0:03:01.3]} 5. Nxd4 {[%clk 0:03:01.5]}
5... a6 {[%clk 0:03:01.6]} 6. Bc4 {[%clk 0:03:01.3]} 6... e6 {[%clk 0:02:54.2]}
7. Bb3 {[%clk 0:03:01.3]} 7... b5 {[%clk 0:02:54.5]} 8. a3 {[%clk 0:03:01.1]}
8... Be7 {[%clk 0:02:54]} 9. f3 {[%clk 0:03:00]} 9... Qc7 {[%clk 0:02:53.4]} 10.
Be3 {[%clk 0:03:00.3]} 10... Nc6 {[%clk 0:02:51.4]} 11. Qd2 {[%clk 0:03:00.1]}
11... Na5 {[%clk 0:02:48.6]} 12. O-O {[%clk 0:02:56.3]} 12... O-O {[%clk
0:02:48.1]} 13. Rfd1 {[%clk 0:02:55.5]} 13... Nc4 {[%clk 0:02:46.6]} 14. Bxc4
{[%clk 0:02:54.9]} 14... bxc4 {[%clk 0:02:47.1]} 15. Qf2 {[%clk 0:02:51.5]}
15... Rb8 {[%clk 0:02:46.2]} 16. Rab1 {[%clk 0:02:50.2]} 16... e5 {[%clk
0:02:43.2]} 17. Nde2 {[%clk 0:02:46]} 17... Be6 {[%clk 0:02:43.2]} 18. g4 {[%clk
0:02:37.9]} 18... Rfd8 {[%clk 0:02:23.1]} 19. g5 {[%clk 0:02:36.5]} 19... Nd7
{[%clk 0:02:23.5]} 20. Ng3 {[%clk 0:02:16.3]} 20... g6 {[%clk 0:02:17.2]} 21. h4
{[%clk 0:02:13.6]} 21... Rb7 {[%clk 0:02:05.7]} 22. h5 {[%clk 0:02:07.4]} 22...
Rdb8 {[%clk 0:02:05.4]} 23. hxg6 {[%clk 0:02:05.8]} 23... hxg6 {[%clk
0:02:06.3]} 24. Kg2 {[%clk 0:01:37.3]} 24... Rxb2 {[%clk 0:02:02]} 25. Rxb2
{[%clk 0:01:35.3]} 25... Rxb2 {[%clk 0:02:02.9]} 26. Nd5 {[%clk 0:01:30.1]}
26... Bxd5 {[%clk 0:02:01.4]} 27. exd5 {[%clk 0:01:26.5]} 27... Nc5 {[%clk
0:01:23.2]} 28. Bxc5 {[%clk 0:01:19.2]} 28... Qxc5 {[%clk 0:01:22.8]} 29. Qxc5
{[%clk 0:01:18.6]} 29... dxc5 {[%clk 0:01:23.7]} 30. Ne4 {[%clk 0:01:16.2]}
30... Rxc2+ {[%clk 0:01:23.7]} 31. Kg3 {[%clk 0:01:14.5]} 31... c3 {[%clk
0:01:12.7]} 32. d6 {[%clk 0:01:12.9]} 32... Bd8 {[%clk 0:01:12.5]} 33. Rd5
{[%clk 0:01:08.6]} 33... Kf8 {[%clk 0:00:44.6]} 34. Rxc5 {[%clk 0:01:03.7]}
34... Ke8 {[%clk 0:00:39.8]} 35. Kg4 {[%clk 0:00:59.2]} 35... Kd7 {[%clk
0:00:35.7]} 36. Nxc3 {[%clk 0:00:52.8]} 36... Rg2+ {[%clk 0:00:34.4]} 37. Kh3
{[%clk 0:00:52.1]} 37... Rxg5 {[%clk 0:00:33.7]} 38. Ne4 {[%clk 0:00:51.5]}
38... Rh5+ {[%clk 0:00:34]} 39. Kg2 {[%clk 0:00:50.7]} 39... f5 {[%clk
0:00:33.8]} 40. Ng3 {[%clk 0:00:49.5]} 40... Kxd6 {[%clk 0:00:29.5]} 41. Rc8
{[%clk 0:00:43.9]} 41... Kd7 {[%clk 0:00:28]} 42. Ra8 {[%clk 0:00:42.7]} 42...
Rg5 {[%clk 0:00:27.7]} 43. Kh3 {[%clk 0:00:39.2]} 43... a5 {[%clk 0:00:27.5]}
44. Ra7+ {[%clk 0:00:37.8]} 44... Bc7 {[%clk 0:00:27.8]} 45. Ne2 {[%clk
0:00:34.1]} 45... Rh5+ {[%clk 0:00:27.5]} 46. Kg2 {[%clk 0:00:34]} 46... Kc6
{[%clk 0:00:28]} 47. Nc3 {[%clk 0:00:30.7]} 47... Rh8 {[%clk 0:00:26.2]} 48. a4
{[%clk 0:00:29.8]} 48... Rd8 {[%clk 0:00:18.4]} 49. Nb5 {[%clk 0:00:27.5]} 49...
Rd7 {[%clk 0:00:18.8]} 50. Ra6+ {[%clk 0:00:27.4]} 50... Bb6 {[%clk 0:00:19.1]}
51. Ra8 {[%clk 0:00:27]} 51... Rd2+ {[%clk 0:00:19.2]} 52. Kh3 {[%clk
0:00:26.5]} 52... Ra2 {[%clk 0:00:19.8]} 53. Rg8 {[%clk 0:00:25.5]} 53... Rxa4
{[%clk 0:00:19.7]} 54. Nc3 {[%clk 0:00:25.4]} 54... Ra3 {[%clk 0:00:19.4]} 55.
Rxg6+ {[%clk 0:00:25.6]} 55... Kb7 {[%clk 0:00:19.9]} 56. Nd5 {[%clk 0:00:25.2]}
56... Rxf3+ {[%clk 0:00:20.1]} 57. Kh4 {[%clk 0:00:24.7]} 57... Rb3 {[%clk
0:00:20.1]} 58. Rg7+ {[%clk 0:00:23.9]} 58... Ka6 {[%clk 0:00:19.2]} 59. Rg6
{[%clk 0:00:24.4]} 59... a4 {[%clk 0:00:19.3]} 60. Re6 {[%clk 0:00:23.6]} 60...
e4 {[%clk 0:00:19.3]} 61. Kg5 {[%clk 0:00:23]} 61... a3 {[%clk 0:00:19.7]} 62.
Nc7+ {[%clk 0:00:21.6]} 62... Kb7 {[%clk 0:00:19.5]} 63. Nd5 {[%clk 0:00:22.5]}
63... a2 {[%clk 0:00:19.6]} 0-1

[Event "Late-Titled-Tuesday-Blitz-September-05-2023"]
[Site "Chess.com"]
[Date "2023.09.05"]
[Round "3"]
[White "Defenstrator"]
[Black "ninguno46"]
[Result "0-1"]
[WhiteElo "2303"]
[BlackElo "2596"]
[TimeControl "180+1"]
[EndTime "14:29:32 PDT"]
[Termination "ninguno46 won by resignation"]

1. Nf3 {[%clk 0:02:56.3]} 1... d5 {[%clk 0:02:57.9]} 2. e3 {[%clk 0:02:47.8]}
2... Nf6 {[%clk 0:02:56]} 3. Ne5 {[%clk 0:02:46]} 3... g6 {[%clk 0:02:50.6]} 4.
b3 {[%clk 0:02:34.8]} 4... Bg7 {[%clk 0:02:50.3]} 5. Bb2 {[%clk 0:02:34.4]} 5...
O-O {[%clk 0:02:50.1]} 6. g3 {[%clk 0:02:30.5]} 6... c5 {[%clk 0:02:48.9]} 7.
Bg2 {[%clk 0:02:28.4]} 7... Nfd7 {[%clk 0:02:21.9]} 8. d4 {[%clk 0:01:52]} 8...
cxd4 {[%clk 0:02:01.9]} 9. Nxd7 {[%clk 0:01:45.7]} 9... Bxd7 {[%clk 0:01:55.4]}
10. Bxd4 {[%clk 0:01:30.5]} 10... e5 {[%clk 0:01:52]} 11. Bb2 {[%clk 0:01:26.6]}
11... Bc6 {[%clk 0:01:51.3]} 12. O-O {[%clk 0:01:24.2]} 12... d4 {[%clk
0:01:43.9]} 13. exd4 {[%clk 0:01:19.6]} 13... exd4 {[%clk 0:01:42.6]} 14. Nd2
{[%clk 0:01:17.5]} 14... Bxg2 {[%clk 0:01:38]} 15. Kxg2 {[%clk 0:01:18]} 15...
Nc6 {[%clk 0:01:38.9]} 16. Nf3 {[%clk 0:01:14.3]} 16... Qd5 {[%clk 0:01:30.3]}
17. Kg1 {[%clk 0:00:56.7]} 17... Rad8 {[%clk 0:01:28.3]} 18. a3 {[%clk
0:00:44.1]} 18... a5 {[%clk 0:01:25.7]} 19. Qd3 {[%clk 0:00:43.2]} 19... Rd7
{[%clk 0:01:17.7]} 20. Rad1 {[%clk 0:00:42.3]} 20... Rfd8 {[%clk 0:01:17.6]} 21.
Rfe1 {[%clk 0:00:36.8]} 21... h6 {[%clk 0:01:08.6]} 22. Re4 {[%clk 0:00:34.1]}
22... f5 {[%clk 0:01:00]} 23. Re2 {[%clk 0:00:29.6]} 23... g5 {[%clk 0:00:59.9]}
24. Rde1 {[%clk 0:00:27.2]} 24... Qf7 {[%clk 0:00:54.1]} 25. Nd2 {[%clk
0:00:19.5]} 25... Rd5 {[%clk 0:00:40.8]} 26. Nc4 {[%clk 0:00:19.7]} 26... g4
{[%clk 0:00:36.2]} 27. Bc1 {[%clk 0:00:14]} 27... b5 {[%clk 0:00:35.2]} 28. Nb6
{[%clk 0:00:13]} 28... Ne5 {[%clk 0:00:33.9]} 29. Qd1 {[%clk 0:00:07.9]} 29...
Nf3+ {[%clk 0:00:33.4]} 30. Kh1 {[%clk 0:00:07.1]} 30... Qh5 {[%clk 0:00:28]}
31. h4 {[%clk 0:00:06]} 31... R5d6 {[%clk 0:00:23.8]} 32. Bf4 {[%clk 0:00:02.7]}
32... Rxb6 {[%clk 0:00:22.3]} 33. Re6 {[%clk 0:00:03.6]} 33... Rxe6 {[%clk
0:00:21.4]} 34. Rxe6 {[%clk 0:00:04.5]} 34... Qf7 {[%clk 0:00:21.6]} 35. Qe2
{[%clk 0:00:05]} 35... Bf8 {[%clk 0:00:20.3]} 36. Bxh6 {[%clk 0:00:04.8]} 36...
Qb7 {[%clk 0:00:15.6]} 37. Bxf8 {[%clk 0:00:03]} 37... Ng5+ {[%clk 0:00:11.1]}
38. Kg1 {[%clk 0:00:01.9]} 38... Nxe6 {[%clk 0:00:08.2]} 39. Qxe6+ {[%clk
0:00:02.7]} 39... Qf7 {[%clk 0:00:09.1]} 40. Qxf7+ {[%clk 0:00:02.4]} 40... Kxf7
{[%clk 0:00:08.7]} 41. Bc5 {[%clk 0:00:03.3]} 41... d3 {[%clk 0:00:08.4]} 42.
cxd3 {[%clk 0:00:04.2]} 42... Rxd3 {[%clk 0:00:08.5]} 43. b4 {[%clk 0:00:03.7]}
43... a4 {[%clk 0:00:08.8]} 44. h5 {[%clk 0:00:03.9]} 44... Rxa3 {[%clk
0:00:09.4]} 45. Be3 {[%clk 0:00:03.8]} 45... Rxe3 {[%clk 0:00:08.6]} 46. fxe3
{[%clk 0:00:04.7]} 46... a3 {[%clk 0:00:09.3]} 0-1